Workbook

Sheet Modelo Atmosférico
A2: Equação Barométrica
A3: P (input) | B3: 101323.8 | D3: =101325-1.2 -> 101323.8
A4: h (output) | B4: =($B$9/$B$10)*((POWER(B3/$B$14,(-$B$11*$B$10)/($B$12*$B$13)))-1) -> 0.0998911156
A6: h (input) | B6: 950
A7: P (output) | B7: =B14*EXP(-B12*B13*B6/(B11*B9)) -> 90531.76119
A9: EQ1_Tb | B9: =273.15+C9 -> 288.15 | C9: 15
A10: EQ1_Lb | B10: -0.0065
A11: EQ1_R | B11: 8.31432
A12: EQ1_g | B12: 9.80665
A13: EQ1_M | B13: 0.0289644
A14: EQ1_Pb | B14: 101325
A16: coef1 | B16: 44307
A17: index1 | B17: 0.2119
A18: coef2 | B18: 44330
A19: index2 | B19: 0.1903

Sheet Leitura Dados de Vôo
A1: Vôo Nº: | D1: Data:
E2: Altitude (m)
A3: Pressão no Solo (Pa) | D3: 91335.28 | E3: =IF(D3<>0,('Modelo Atmosférico'!$B$9/'Modelo Atmosférico'!$B$10)*((POWER(D3/'Modelo Atmosférico'!$B$14,(-'Modelo Atmosférico'!$B$11*'Modelo Atmosférico'!$B$10)/('Modelo Atmosférico'!$B$12*'Modelo Atmosférico'!$B$13)))-1),0) -> 866.881324 | F3: Apogeu (m)
A4: Pressão no Apogeu (Pa) | D4: 82871.69 | E4: =IF(D4<>0,('Modelo Atmosférico'!$B$9/'Modelo Atmosférico'!$B$10)*((POWER(D4/'Modelo Atmosférico'!$B$14,(-'Modelo Atmosférico'!$B$11*'Modelo Atmosférico'!$B$10)/('Modelo Atmosférico'!$B$12*'Modelo Atmosférico'!$B$13)))-1),0) -> 1663.651639 | F4: =E4-E3 -> 796.770315
C6: Altímetro
A7: Tempo (s) | C7: Dados Brutos | D7: Pressao | E7: Altitude | F7: Altura
A8: 0 | C8: 30594 | D8: 91335.28 | E8: =IF(D8<>0,('Modelo Atmosférico'!$B$9/'Modelo Atmosférico'!$B$10)*((POWER(D8/'Modelo Atmosférico'!$B$14,(-'Modelo Atmosférico'!$B$11*'Modelo Atmosférico'!$B$10)/('Modelo Atmosférico'!$B$12*'Modelo Atmosférico'!$B$13)))-1),0) -> 866.881324 | F8: =IF(D8<>0,E8-$E$3,0) -> 0
A9: 0.192 | C9: 30594 | D9: 91335.28 | E9: =IF(D9<>0,('Modelo Atmosférico'!$B$9/'Modelo Atmosférico'!$B$10)*((POWER(D9/'Modelo Atmosférico'!$B$14,(-'Modelo Atmosférico'!$B$11*'Modelo Atmosférico'!$B$10)/('Modelo Atmosférico'!$B$12*'Modelo Atmosférico'!$B$13)))-1),0) -> 866.881324 | F9: 0
A10: 0.384 | C10: 30565 | D10: 91413.19 | E10: =IF(D10<>0,('Modelo Atmosférico'!$B$9/'Modelo Atmosférico'!$B$10)*((POWER(D10/'Modelo Atmosférico'!$B$14,(-'Modelo Atmosférico'!$B$11*'Modelo Atmosférico'!$B$10)/('Modelo Atmosférico'!$B$12*'Modelo Atmosférico'!$B$13)))-1),0) -> 859.8297161 | F10: -7.051607914
A11: 0.576 | C11: 30257 | D11: 92240.78 | E11: =IF(D11<>0,('Modelo Atmosférico'!$B$9/'Modelo Atmosférico'!$B$10)*((POWER(D11/'Modelo Atmosférico'!$B$14,(-'Modelo Atmosférico'!$B$11*'Modelo Atmosférico'!$B$10)/('Modelo Atmosférico'!$B$12*'Modelo Atmosférico'!$B$13)))-1),0) -> 785.2236461 | F11: -81.65767793
A12: 0.768 | C12: 30047 | D12: 92805.19 | E12: =IF(D12<>0,('Modelo Atmosférico'!$B$9/'Modelo Atmosférico'!$B$10)*((POWER(D12/'Modelo Atmosférico'!$B$14,(-'Modelo Atmosférico'!$B$11*'Modelo Atmosférico'!$B$10)/('Modelo Atmosférico'!$B$12*'Modelo Atmosférico'!$B$13)))-1),0) -> 734.6531652 | F12: -132.2281588
A13: 0.96 | C13: 30064 | D13: 92759.5 | E13: =IF(D13<>0,('Modelo Atmosférico'!$B$9/'Modelo Atmosférico'!$B$10)*((POWER(D13/'Modelo Atmosférico'!$B$14,(-'Modelo Atmosférico'!$B$11*'Modelo Atmosférico'!$B$10)/('Modelo Atmosférico'!$B$12*'Modelo Atmosférico'!$B$13)))-1),0) -> 738.7376582 | F13: -128.1436658
A14: 1.152 | C14: 30219 | D14: 92342.91 | E14: =IF(D14<>0,('Modelo Atmosférico'!$B$9/'Modelo Atmosférico'!$B$10)*((POWER(D14/'Modelo Atmosférico'!$B$14,(-'Modelo Atmosférico'!$B$11*'Modelo Atmosférico'!$B$10)/('Modelo Atmosférico'!$B$12*'Modelo Atmosférico'!$B$13)))-1),0) -> 776.0543841 | F14: -90.82693998
A15: 1.344 | C15: 30395 | D15: 91869.95 | E15: =IF(D15<>0,('Modelo Atmosférico'!$B$9/'Modelo Atmosférico'!$B$10)*((POWER(D15/'Modelo Atmosférico'!$B$14,(-'Modelo Atmosférico'!$B$11*'Modelo Atmosférico'!$B$10)/('Modelo Atmosférico'!$B$12*'Modelo Atmosférico'!$B$13)))-1),0) -> 818.5861425 | F15: -48.29518156
A16: 1.536 | C16: 30573 | D16: 91391.7 | E16: =IF(D16<>0,('Modelo Atmosférico'!$B$9/'Modelo Atmosférico'!$B$10)*((POWER(D16/'Modelo Atmosférico'!$B$14,(-'Modelo Atmosférico'!$B$11*'Modelo Atmosférico'!$B$10)/('Modelo Atmosférico'!$B$12*'Modelo Atmosférico'!$B$13)))-1),0) -> 861.7742826 | F16: -5.107041425
A17: 1.728 | C17: 30739 | D17: 90945.76 | E17: =IF(D17<>0,('Modelo Atmosférico'!$B$9/'Modelo Atmosférico'!$B$10)*((POWER(D17/'Modelo Atmosférico'!$B$14,(-'Modelo Atmosférico'!$B$11*'Modelo Atmosférico'!$B$10)/('Modelo Atmosférico'!$B$12*'Modelo Atmosférico'!$B$13)))-1),0) -> 902.2098738 | F17: 35.32854976
A18: 1.92 | C18: 30894 | D18: 90529.43 | E18: =IF(D18<>0,('Modelo Atmosférico'!$B$9/'Modelo Atmosférico'!$B$10)*((POWER(D18/'Modelo Atmosférico'!$B$14,(-'Modelo Atmosférico'!$B$11*'Modelo Atmosférico'!$B$10)/('Modelo Atmosférico'!$B$12*'Modelo Atmosférico'!$B$13)))-1),0) -> 940.1057502 | F18: 73.22442615
A19: 2.112 | C19: 31028 | D19: 90169.56 | E19: =IF(D19<>0,('Modelo Atmosférico'!$B$9/'Modelo Atmosférico'!$B$10)*((POWER(D19/'Modelo Atmosférico'!$B$14,(-'Modelo Atmosférico'!$B$11*'Modelo Atmosférico'!$B$10)/('Modelo Atmosférico'!$B$12*'Modelo Atmosférico'!$B$13)))-1),0) -> 972.9763106 | F19: 106.0949865
A20: 2.304 | C20: 31163 | D20: 89807.05 | E20: =IF(D20<>0,('Modelo Atmosférico'!$B$9/'Modelo Atmosférico'!$B$10)*((POWER(D20/'Modelo Atmosférico'!$B$14,(-'Modelo Atmosférico'!$B$11*'Modelo Atmosférico'!$B$10)/('Modelo Atmosférico'!$B$12*'Modelo Atmosférico'!$B$13)))-1),0) -> 1006.195584 | F20: 139.31426
A21: 2.496 | C21: 31301 | D21: 89436.52 | E21: =IF(D21<>0,('Modelo Atmosférico'!$B$9/'Modelo Atmosférico'!$B$10)*((POWER(D21/'Modelo Atmosférico'!$B$14,(-'Modelo Atmosférico'!$B$11*'Modelo Atmosférico'!$B$10)/('Modelo Atmosférico'!$B$12*'Modelo Atmosférico'!$B$13)))-1),0) -> 1040.262183 | F21: 173.3808593
A22: 2.688 | C22: 31432 | D22: 89084.84 | E22: =IF(D22<>0,('Modelo Atmosférico'!$B$9/'Modelo Atmosférico'!$B$10)*((POWER(D22/'Modelo Atmosférico'!$B$14,(-'Modelo Atmosférico'!$B$11*'Modelo Atmosférico'!$B$10)/('Modelo Atmosférico'!$B$12*'Modelo Atmosférico'!$B$13)))-1),0) -> 1072.701584 | F22: 205.8202602
A23: 2.88 | C23: 31557 | D23: 88749.3 | E23: =IF(D23<>0,('Modelo Atmosférico'!$B$9/'Modelo Atmosférico'!$B$10)*((POWER(D23/'Modelo Atmosférico'!$B$14,(-'Modelo Atmosférico'!$B$11*'Modelo Atmosférico'!$B$10)/('Modelo Atmosférico'!$B$12*'Modelo Atmosférico'!$B$13)))-1),0) -> 1103.749022 | F23: 236.8676983
A24: 3.072 | C24: 31672 | D24: 88440.64 | E24: =IF(D24<>0,('Modelo Atmosférico'!$B$9/'Modelo Atmosférico'!$B$10)*((POWER(D24/'Modelo Atmosférico'!$B$14,(-'Modelo Atmosférico'!$B$11*'Modelo Atmosférico'!$B$10)/('Modelo Atmosférico'!$B$12*'Modelo Atmosférico'!$B$13)))-1),0) -> 1132.393306 | F24: 265.5119824
A25: 3.264 | C25: 31778 | D25: 88156.17 | E25: =IF(D25<>0,('Modelo Atmosférico'!$B$9/'Modelo Atmosférico'!$B$10)*((POWER(D25/'Modelo Atmosférico'!$B$14,(-'Modelo Atmosférico'!$B$11*'Modelo Atmosférico'!$B$10)/('Modelo Atmosférico'!$B$12*'Modelo Atmosférico'!$B$13)))-1),0) -> 1158.86448 | F25: 291.9831557
A26: 3.456 | C26: 31888 | D26: 87860.98 | E26: =IF(D26<>0,('Modelo Atmosférico'!$B$9/'Modelo Atmosférico'!$B$10)*((POWER(D26/'Modelo Atmosférico'!$B$14,(-'Modelo Atmosférico'!$B$11*'Modelo Atmosférico'!$B$10)/('Modelo Atmosférico'!$B$12*'Modelo Atmosférico'!$B$13)))-1),0) -> 1186.406423 | F26: 319.5250991
A27: 3.648 | C27: 31987 | D27: 87595.36 | E27: =IF(D27<>0,('Modelo Atmosférico'!$B$9/'Modelo Atmosférico'!$B$10)*((POWER(D27/'Modelo Atmosférico'!$B$14,(-'Modelo Atmosférico'!$B$11*'Modelo Atmosférico'!$B$10)/('Modelo Atmosférico'!$B$12*'Modelo Atmosférico'!$B$13)))-1),0) -> 1211.253533 | F27: 344.3722094
A28: 3.84 | C28: 32079 | D28: 87348.53 | E28: =IF(D28<>0,('Modelo Atmosférico'!$B$9/'Modelo Atmosférico'!$B$10)*((POWER(D28/'Modelo Atmosférico'!$B$14,(-'Modelo Atmosférico'!$B$11*'Modelo Atmosférico'!$B$10)/('Modelo Atmosférico'!$B$12*'Modelo Atmosférico'!$B$13)))-1),0) -> 1234.397704 | F28: 367.5163801
A29: 4.032 | C29: 32168 | D29: 87109.77 | E29: =IF(D29<>0,('Modelo Atmosférico'!$B$9/'Modelo Atmosférico'!$B$10)*((POWER(D29/'Modelo Atmosférico'!$B$14,(-'Modelo Atmosférico'!$B$11*'Modelo Atmosférico'!$B$10)/('Modelo Atmosférico'!$B$12*'Modelo Atmosférico'!$B$13)))-1),0) -> 1256.83563 | F29: 389.9543058
A30: 4.224 | C30: 32250 | D30: 86889.8 | E30: =IF(D30<>0,('Modelo Atmosférico'!$B$9/'Modelo Atmosférico'!$B$10)*((POWER(D30/'Modelo Atmosférico'!$B$14,(-'Modelo Atmosférico'!$B$11*'Modelo Atmosférico'!$B$10)/('Modelo Atmosférico'!$B$12*'Modelo Atmosférico'!$B$13)))-1),0) -> 1277.551847 | F30: 410.6705234
A31: 4.416 | C31: 32339 | D31: 86651.07 | E31: =IF(D31<>0,('Modelo Atmosférico'!$B$9/'Modelo Atmosférico'!$B$10)*((POWER(D31/'Modelo Atmosférico'!$B$14,(-'Modelo Atmosférico'!$B$11*'Modelo Atmosférico'!$B$10)/('Modelo Atmosférico'!$B$12*'Modelo Atmosférico'!$B$13)))-1),0) -> 1300.082944 | F31: 433.2016197
A32: 4.608 | C32: 32426 | D32: 86417.73 | E32: =IF(D32<>0,('Modelo Atmosférico'!$B$9/'Modelo Atmosférico'!$B$10)*((POWER(D32/'Modelo Atmosférico'!$B$14,(-'Modelo Atmosférico'!$B$11*'Modelo Atmosférico'!$B$10)/('Modelo Atmosférico'!$B$12*'Modelo Atmosférico'!$B$13)))-1),0) -> 1322.153965 | F32: 455.2726406
A33: 4.8 | C33: 32505 | D33: 86205.87 | E33: =IF(D33<>0,('Modelo Atmosférico'!$B$9/'Modelo Atmosférico'!$B$10)*((POWER(D33/'Modelo Atmosférico'!$B$14,(-'Modelo Atmosférico'!$B$11*'Modelo Atmosférico'!$B$10)/('Modelo Atmosférico'!$B$12*'Modelo Atmosférico'!$B$13)))-1),0) -> 1342.235085 | F33: 475.3537612
A34: 4.992 | C34: 32581 | D34: 86002.06 | E34: =IF(D34<>0,('Modelo Atmosférico'!$B$9/'Modelo Atmosférico'!$B$10)*((POWER(D34/'Modelo Atmosférico'!$B$14,(-'Modelo Atmosférico'!$B$11*'Modelo Atmosférico'!$B$10)/('Modelo Atmosférico'!$B$12*'Modelo Atmosférico'!$B$13)))-1),0) -> 1361.590936 | F34: =IF(D34<>0,E34-$E$3,0) -> 494.7096121
A35: 5.184 | C35: 32649 | D35: 85819.72 | E35: =IF(D35<>0,('Modelo Atmosférico'!$B$9/'Modelo Atmosférico'!$B$10)*((POWER(D35/'Modelo Atmosférico'!$B$14,(-'Modelo Atmosférico'!$B$11*'Modelo Atmosférico'!$B$10)/('Modelo Atmosférico'!$B$12*'Modelo Atmosférico'!$B$13)))-1),0) -> 1378.939285 | F35: =IF(D35<>0,E35-$E$3,0) -> 512.0579606
A36: 5.376 | C36: 32719 | D36: 85632.03 | E36: =IF(D36<>0,('Modelo Atmosférico'!$B$9/'Modelo Atmosférico'!$B$10)*((POWER(D36/'Modelo Atmosférico'!$B$14,(-'Modelo Atmosférico'!$B$11*'Modelo Atmosférico'!$B$10)/('Modelo Atmosférico'!$B$12*'Modelo Atmosférico'!$B$13)))-1),0) -> 1396.827849 | F36: 529.9465246
A37: 5.568 | C37: 32785 | D37: 85455.07 | E37: =IF(D37<>0,('Modelo Atmosférico'!$B$9/'Modelo Atmosférico'!$B$10)*((POWER(D37/'Modelo Atmosférico'!$B$14,(-'Modelo Atmosférico'!$B$11*'Modelo Atmosférico'!$B$10)/('Modelo Atmosférico'!$B$12*'Modelo Atmosférico'!$B$13)))-1),0) -> 1413.722848 | F37: 546.8415236
A38: 5.76 | C38: 32848 | D38: 85286.17 | E38: =IF(D38<>0,('Modelo Atmosférico'!$B$9/'Modelo Atmosférico'!$B$10)*((POWER(D38/'Modelo Atmosférico'!$B$14,(-'Modelo Atmosférico'!$B$11*'Modelo Atmosférico'!$B$10)/('Modelo Atmosférico'!$B$12*'Modelo Atmosférico'!$B$13)))-1),0) -> 1429.874774 | F38: 562.9934499
A39: 5.952 | C39: 32903 | D39: 85138.72 | E39: =IF(D39<>0,('Modelo Atmosférico'!$B$9/'Modelo Atmosférico'!$B$10)*((POWER(D39/'Modelo Atmosférico'!$B$14,(-'Modelo Atmosférico'!$B$11*'Modelo Atmosférico'!$B$10)/('Modelo Atmosférico'!$B$12*'Modelo Atmosférico'!$B$13)))-1),0) -> 1443.996624 | F39: 577.1153
A40: 6.144 | C40: 32958 | D40: 84991.28 | E40: =IF(D40<>0,('Modelo Atmosférico'!$B$9/'Modelo Atmosférico'!$B$10)*((POWER(D40/'Modelo Atmosférico'!$B$14,(-'Modelo Atmosférico'!$B$11*'Modelo Atmosférico'!$B$10)/('Modelo Atmosférico'!$B$12*'Modelo Atmosférico'!$B$13)))-1),0) -> 1458.137332 | F40: 591.2560083
A41: 6.336 | C41: 33010 | D41: 84851.89 | E41: =IF(D41<>0,('Modelo Atmosférico'!$B$9/'Modelo Atmosférico'!$B$10)*((POWER(D41/'Modelo Atmosférico'!$B$14,(-'Modelo Atmosférico'!$B$11*'Modelo Atmosférico'!$B$10)/('Modelo Atmosférico'!$B$12*'Modelo Atmosférico'!$B$13)))-1),0) -> 1471.524258 | F41: 604.6429335
A42: 6.528 | C42: 33061 | D42: 84715.19 | E42: =IF(D42<>0,('Modelo Atmosférico'!$B$9/'Modelo Atmosférico'!$B$10)*((POWER(D42/'Modelo Atmosférico'!$B$14,(-'Modelo Atmosférico'!$B$11*'Modelo Atmosférico'!$B$10)/('Modelo Atmosférico'!$B$12*'Modelo Atmosférico'!$B$13)))-1),0) -> 1484.670143 | F42: 617.788819
A43: 6.72 | C43: 33114 | D43: 84573.14 | E43: =IF(D43<>0,('Modelo Atmosférico'!$B$9/'Modelo Atmosférico'!$B$10)*((POWER(D43/'Modelo Atmosférico'!$B$14,(-'Modelo Atmosférico'!$B$11*'Modelo Atmosférico'!$B$10)/('Modelo Atmosférico'!$B$12*'Modelo Atmosférico'!$B$13)))-1),0) -> 1498.348727 | F43: 631.4674033
A44: 6.912 | C44: 33162 | D44: 84444.48 | E44: =IF(D44<>0,('Modelo Atmosférico'!$B$9/'Modelo Atmosférico'!$B$10)*((POWER(D44/'Modelo Atmosférico'!$B$14,(-'Modelo Atmosférico'!$B$11*'Modelo Atmosférico'!$B$10)/('Modelo Atmosférico'!$B$12*'Modelo Atmosférico'!$B$13)))-1),0) -> 1510.753998 | F44: 643.8726739
A45: 7.104 | C45: 33208 | D45: 84321.2 | E45: =IF(D45<>0,('Modelo Atmosférico'!$B$9/'Modelo Atmosférico'!$B$10)*((POWER(D45/'Modelo Atmosférico'!$B$14,(-'Modelo Atmosférico'!$B$11*'Modelo Atmosférico'!$B$10)/('Modelo Atmosférico'!$B$12*'Modelo Atmosférico'!$B$13)))-1),0) -> 1522.654901 | F45: 655.7735766
A46: 7.296 | C46: 33256 | D46: 84192.56 | E46: =IF(D46<>0,('Modelo Atmosférico'!$B$9/'Modelo Atmosférico'!$B$10)*((POWER(D46/'Modelo Atmosférico'!$B$14,(-'Modelo Atmosférico'!$B$11*'Modelo Atmosférico'!$B$10)/('Modelo Atmosférico'!$B$12*'Modelo Atmosférico'!$B$13)))-1),0) -> 1535.088265 | F46: 668.2069405
A47: 7.488 | C47: 33299 | D47: 84077.34 | E47: =IF(D47<>0,('Modelo Atmosférico'!$B$9/'Modelo Atmosférico'!$B$10)*((POWER(D47/'Modelo Atmosférico'!$B$14,(-'Modelo Atmosférico'!$B$11*'Modelo Atmosférico'!$B$10)/('Modelo Atmosférico'!$B$12*'Modelo Atmosférico'!$B$13)))-1),0) -> 1546.237619 | F47: 679.3562954
A48: 7.68 | C48: 33338 | D48: 83972.83 | E48: =IF(D48<>0,('Modelo Atmosférico'!$B$9/'Modelo Atmosférico'!$B$10)*((POWER(D48/'Modelo Atmosférico'!$B$14,(-'Modelo Atmosférico'!$B$11*'Modelo Atmosférico'!$B$10)/('Modelo Atmosférico'!$B$12*'Modelo Atmosférico'!$B$13)))-1),0) -> 1556.361318 | F48: 689.4799943
A49: 7.872 | C49: 33376 | D49: 83871 | E49: =IF(D49<>0,('Modelo Atmosférico'!$B$9/'Modelo Atmosférico'!$B$10)*((POWER(D49/'Modelo Atmosférico'!$B$14,(-'Modelo Atmosférico'!$B$11*'Modelo Atmosférico'!$B$10)/('Modelo Atmosférico'!$B$12*'Modelo Atmosférico'!$B$13)))-1),0) -> 1566.235228 | F49: 699.3539043
A50: 8.064 | C50: 33408 | D50: 83785.25 | E50: =IF(D50<>0,('Modelo Atmosférico'!$B$9/'Modelo Atmosférico'!$B$10)*((POWER(D50/'Modelo Atmosférico'!$B$14,(-'Modelo Atmosférico'!$B$11*'Modelo Atmosférico'!$B$10)/('Modelo Atmosférico'!$B$12*'Modelo Atmosférico'!$B$13)))-1),0) -> 1574.557479 | F50: 707.6761547
A51: 8.256 | C51: 33442 | D51: 83694.16 | E51: =IF(D51<>0,('Modelo Atmosférico'!$B$9/'Modelo Atmosférico'!$B$10)*((POWER(D51/'Modelo Atmosférico'!$B$14,(-'Modelo Atmosférico'!$B$11*'Modelo Atmosférico'!$B$10)/('Modelo Atmosférico'!$B$12*'Modelo Atmosférico'!$B$13)))-1),0) -> 1583.405547 | F51: 716.5242232
A52: 8.448 | C52: 33469 | D52: 83621.81 | E52: =IF(D52<>0,('Modelo Atmosférico'!$B$9/'Modelo Atmosférico'!$B$10)*((POWER(D52/'Modelo Atmosférico'!$B$14,(-'Modelo Atmosférico'!$B$11*'Modelo Atmosférico'!$B$10)/('Modelo Atmosférico'!$B$12*'Modelo Atmosférico'!$B$13)))-1),0) -> 1590.438855 | F52: 723.5575314
A53: 8.64 | C53: 33499 | D53: 83541.43 | E53: =IF(D53<>0,('Modelo Atmosférico'!$B$9/'Modelo Atmosférico'!$B$10)*((POWER(D53/'Modelo Atmosférico'!$B$14,(-'Modelo Atmosférico'!$B$11*'Modelo Atmosférico'!$B$10)/('Modelo Atmosférico'!$B$12*'Modelo Atmosférico'!$B$13)))-1),0) -> 1598.258559 | F53: 731.3772347
A54: 8.832 | C54: 33526 | D54: 83469.09 | E54: =IF(D54<>0,('Modelo Atmosférico'!$B$9/'Modelo Atmosférico'!$B$10)*((POWER(D54/'Modelo Atmosférico'!$B$14,(-'Modelo Atmosférico'!$B$11*'Modelo Atmosférico'!$B$10)/('Modelo Atmosférico'!$B$12*'Modelo Atmosférico'!$B$13)))-1),0) -> 1605.301308 | F54: 738.4199835
A55: 9.024 | C55: 33550 | D55: 83404.79 | E55: =IF(D55<>0,('Modelo Atmosférico'!$B$9/'Modelo Atmosférico'!$B$10)*((POWER(D55/'Modelo Atmosférico'!$B$14,(-'Modelo Atmosférico'!$B$11*'Modelo Atmosférico'!$B$10)/('Modelo Atmosférico'!$B$12*'Modelo Atmosférico'!$B$13)))-1),0) -> 1611.565463 | F55: 744.6841385
A56: 9.216 | C56: 33572 | D56: 83345.84 | E56: =IF(D56<>0,('Modelo Atmosférico'!$B$9/'Modelo Atmosférico'!$B$10)*((POWER(D56/'Modelo Atmosférico'!$B$14,(-'Modelo Atmosférico'!$B$11*'Modelo Atmosférico'!$B$10)/('Modelo Atmosférico'!$B$12*'Modelo Atmosférico'!$B$13)))-1),0) -> 1617.311853 | F56: 750.4305293
A57: 9.408 | C57: 33595 | D57: 83284.23 | E57: =IF(D57<>0,('Modelo Atmosférico'!$B$9/'Modelo Atmosférico'!$B$10)*((POWER(D57/'Modelo Atmosférico'!$B$14,(-'Modelo Atmosférico'!$B$11*'Modelo Atmosférico'!$B$10)/('Modelo Atmosférico'!$B$12*'Modelo Atmosférico'!$B$13)))-1),0) -> 1623.321057 | F57: 756.4397327
A58: 9.6 | C58: 33615 | D58: 83230.65 | E58: =IF(D58<>0,('Modelo Atmosférico'!$B$9/'Modelo Atmosférico'!$B$10)*((POWER(D58/'Modelo Atmosférico'!$B$14,(-'Modelo Atmosférico'!$B$11*'Modelo Atmosférico'!$B$10)/('Modelo Atmosférico'!$B$12*'Modelo Atmosférico'!$B$13)))-1),0) -> 1628.549972 | F58: 761.6686477
A59: 9.792 | C59: 33632 | D59: 83185.11 | E59: =IF(D59<>0,('Modelo Atmosférico'!$B$9/'Modelo Atmosférico'!$B$10)*((POWER(D59/'Modelo Atmosférico'!$B$14,(-'Modelo Atmosférico'!$B$11*'Modelo Atmosférico'!$B$10)/('Modelo Atmosférico'!$B$12*'Modelo Atmosférico'!$B$13)))-1),0) -> 1632.9964 | F59: 766.115076
A60: 9.984 | C60: 33649 | D60: 83139.56 | E60: =IF(D60<>0,('Modelo Atmosférico'!$B$9/'Modelo Atmosférico'!$B$10)*((POWER(D60/'Modelo Atmosférico'!$B$14,(-'Modelo Atmosférico'!$B$11*'Modelo Atmosférico'!$B$10)/('Modelo Atmosférico'!$B$12*'Modelo Atmosférico'!$B$13)))-1),0) -> 1637.445777 | F60: 770.5644529
A61: 10.176 | C61: 33660 | D61: 83110.09 | E61: =IF(D61<>0,('Modelo Atmosférico'!$B$9/'Modelo Atmosférico'!$B$10)*((POWER(D61/'Modelo Atmosférico'!$B$14,(-'Modelo Atmosférico'!$B$11*'Modelo Atmosférico'!$B$10)/('Modelo Atmosférico'!$B$12*'Modelo Atmosférico'!$B$13)))-1),0) -> 1640.325492 | F61: 773.4441684
A62: 10.368 | C62: 33674 | D62: 83072.59 | E62: =IF(D62<>0,('Modelo Atmosférico'!$B$9/'Modelo Atmosférico'!$B$10)*((POWER(D62/'Modelo Atmosférico'!$B$14,(-'Modelo Atmosférico'!$B$11*'Modelo Atmosférico'!$B$10)/('Modelo Atmosférico'!$B$12*'Modelo Atmosférico'!$B$13)))-1),0) -> 1643.99107 | F62: 777.109746
A63: 10.56 | C63: 33686 | D63: 83040.45 | E63: =IF(D63<>0,('Modelo Atmosférico'!$B$9/'Modelo Atmosférico'!$B$10)*((POWER(D63/'Modelo Atmosférico'!$B$14,(-'Modelo Atmosférico'!$B$11*'Modelo Atmosférico'!$B$10)/('Modelo Atmosférico'!$B$12*'Modelo Atmosférico'!$B$13)))-1),0) -> 1647.133781 | F63: 780.2524568
A64: 10.752 | C64: 33697 | D64: 83010.98 | E64: =IF(D64<>0,('Modelo Atmosférico'!$B$9/'Modelo Atmosférico'!$B$10)*((POWER(D64/'Modelo Atmosférico'!$B$14,(-'Modelo Atmosférico'!$B$11*'Modelo Atmosférico'!$B$10)/('Modelo Atmosférico'!$B$12*'Modelo Atmosférico'!$B$13)))-1),0) -> 1650.01628 | F64: 783.1349556
A65: 10.944 | C65: 33707 | D65: 82984.2 | E65: =IF(D65<>0,('Modelo Atmosférico'!$B$9/'Modelo Atmosférico'!$B$10)*((POWER(D65/'Modelo Atmosférico'!$B$14,(-'Modelo Atmosférico'!$B$11*'Modelo Atmosférico'!$B$10)/('Modelo Atmosférico'!$B$12*'Modelo Atmosférico'!$B$13)))-1),0) -> 1652.636385 | F65: 785.7550607
A66: 11.136 | C66: 33715 | D66: 82962.77 | E66: =IF(D66<>0,('Modelo Atmosférico'!$B$9/'Modelo Atmosférico'!$B$10)*((POWER(D66/'Modelo Atmosférico'!$B$14,(-'Modelo Atmosférico'!$B$11*'Modelo Atmosférico'!$B$10)/('Modelo Atmosférico'!$B$12*'Modelo Atmosférico'!$B$13)))-1),0) -> 1654.733549 | F66: 787.852225
A67: 11.328 | C67: 33719 | D67: 82952.05 | E67: =IF(D67<>0,('Modelo Atmosférico'!$B$9/'Modelo Atmosférico'!$B$10)*((POWER(D67/'Modelo Atmosférico'!$B$14,(-'Modelo Atmosférico'!$B$11*'Modelo Atmosférico'!$B$10)/('Modelo Atmosférico'!$B$12*'Modelo Atmosférico'!$B$13)))-1),0) -> 1655.782785 | F67: 788.9014611
A68: 11.52 | C68: 33725 | D68: 82935.97 | E68: =IF(D68<>0,('Modelo Atmosférico'!$B$9/'Modelo Atmosférico'!$B$10)*((POWER(D68/'Modelo Atmosférico'!$B$14,(-'Modelo Atmosférico'!$B$11*'Modelo Atmosférico'!$B$10)/('Modelo Atmosférico'!$B$12*'Modelo Atmosférico'!$B$13)))-1),0) -> 1657.356845 | F68: 790.4755211
A69: 11.712 | C69: 33729 | D69: 82925.27 | E69: =IF(D69<>0,('Modelo Atmosférico'!$B$9/'Modelo Atmosférico'!$B$10)*((POWER(D69/'Modelo Atmosférico'!$B$14,(-'Modelo Atmosférico'!$B$11*'Modelo Atmosférico'!$B$10)/('Modelo Atmosférico'!$B$12*'Modelo Atmosférico'!$B$13)))-1),0) -> 1658.404398 | F69: 791.5230736
A70: 11.904 | C70: 23097 | D70: 111546.54 | E70: =IF(D70<>0,('Modelo Atmosférico'!$B$9/'Modelo Atmosférico'!$B$10)*((POWER(D70/'Modelo Atmosférico'!$B$14,(-'Modelo Atmosférico'!$B$11*'Modelo Atmosférico'!$B$10)/('Modelo Atmosférico'!$B$12*'Modelo Atmosférico'!$B$13)))-1),0) -> -818.0875505 | F70: -1684.968875
A71: 12.096 | C71: 33748 | D71: 82874.37 | E71: =IF(D71<>0,('Modelo Atmosférico'!$B$9/'Modelo Atmosférico'!$B$10)*((POWER(D71/'Modelo Atmosférico'!$B$14,(-'Modelo Atmosférico'!$B$11*'Modelo Atmosférico'!$B$10)/('Modelo Atmosférico'!$B$12*'Modelo Atmosférico'!$B$13)))-1),0) -> 1663.389114 | F71: 796.5077897
A72: 12.288 | C72: 33749 | D72: 82871.69 | E72: =IF(D72<>0,('Modelo Atmosférico'!$B$9/'Modelo Atmosférico'!$B$10)*((POWER(D72/'Modelo Atmosférico'!$B$14,(-'Modelo Atmosférico'!$B$11*'Modelo Atmosférico'!$B$10)/('Modelo Atmosférico'!$B$12*'Modelo Atmosférico'!$B$13)))-1),0) -> 1663.651639 | F72: 796.770315
A73: 12.48 | C73: 33745 | D73: 82882.41 | E73: =IF(D73<>0,('Modelo Atmosférico'!$B$9/'Modelo Atmosférico'!$B$10)*((POWER(D73/'Modelo Atmosférico'!$B$14,(-'Modelo Atmosférico'!$B$11*'Modelo Atmosférico'!$B$10)/('Modelo Atmosférico'!$B$12*'Modelo Atmosférico'!$B$13)))-1),0) -> 1662.601579 | F73: 795.7202552
A74: 12.672 | C74: 33740 | D74: 82895.8 | E74: =IF(D74<>0,('Modelo Atmosférico'!$B$9/'Modelo Atmosférico'!$B$10)*((POWER(D74/'Modelo Atmosférico'!$B$14,(-'Modelo Atmosférico'!$B$11*'Modelo Atmosférico'!$B$10)/('Modelo Atmosférico'!$B$12*'Modelo Atmosférico'!$B$13)))-1),0) -> 1661.290138 | F74: 794.4088145
A75: 12.864 | C75: 33735 | D75: 82909.19 | E75: =IF(D75<>0,('Modelo Atmosférico'!$B$9/'Modelo Atmosférico'!$B$10)*((POWER(D75/'Modelo Atmosférico'!$B$14,(-'Modelo Atmosférico'!$B$11*'Modelo Atmosférico'!$B$10)/('Modelo Atmosférico'!$B$12*'Modelo Atmosférico'!$B$13)))-1),0) -> 1659.978869 | F75: 793.0975452
A76: 13.056 | C76: 33725 | D76: 82935.97 | E76: =IF(D76<>0,('Modelo Atmosférico'!$B$9/'Modelo Atmosférico'!$B$10)*((POWER(D76/'Modelo Atmosférico'!$B$14,(-'Modelo Atmosférico'!$B$11*'Modelo Atmosférico'!$B$10)/('Modelo Atmosférico'!$B$12*'Modelo Atmosférico'!$B$13)))-1),0) -> 1657.356845 | F76: 790.4755211
A77: 13.248 | C77: 33717 | D77: 82957.41 | E77: =IF(D77<>0,('Modelo Atmosférico'!$B$9/'Modelo Atmosférico'!$B$10)*((POWER(D77/'Modelo Atmosférico'!$B$14,(-'Modelo Atmosférico'!$B$11*'Modelo Atmosférico'!$B$10)/('Modelo Atmosférico'!$B$12*'Modelo Atmosférico'!$B$13)))-1),0) -> 1655.258153 | F77: 788.3768294
A78: 13.44 | C78: 33717 | D78: 82957.41 | E78: =IF(D78<>0,('Modelo Atmosférico'!$B$9/'Modelo Atmosférico'!$B$10)*((POWER(D78/'Modelo Atmosférico'!$B$14,(-'Modelo Atmosférico'!$B$11*'Modelo Atmosférico'!$B$10)/('Modelo Atmosférico'!$B$12*'Modelo Atmosférico'!$B$13)))-1),0) -> 1655.258153 | F78: 788.3768294
A79: 13.632 | C79: 33705 | D79: 82989.55 | E79: =IF(D79<>0,('Modelo Atmosférico'!$B$9/'Modelo Atmosférico'!$B$10)*((POWER(D79/'Modelo Atmosférico'!$B$14,(-'Modelo Atmosférico'!$B$11*'Modelo Atmosférico'!$B$10)/('Modelo Atmosférico'!$B$12*'Modelo Atmosférico'!$B$13)))-1),0) -> 1652.112896 | F79: 785.231572
A80: 13.824 | C80: 33693 | D80: 83021.7 | E80: =IF(D80<>0,('Modelo Atmosférico'!$B$9/'Modelo Atmosférico'!$B$10)*((POWER(D80/'Modelo Atmosférico'!$B$14,(-'Modelo Atmosférico'!$B$11*'Modelo Atmosférico'!$B$10)/('Modelo Atmosférico'!$B$12*'Modelo Atmosférico'!$B$13)))-1),0) -> 1648.967647 | F80: 782.0863227
A81: 14.016 | C81: 33685 | D81: 83043.13 | E81: =IF(D81<>0,('Modelo Atmosférico'!$B$9/'Modelo Atmosférico'!$B$10)*((POWER(D81/'Modelo Atmosférico'!$B$14,(-'Modelo Atmosférico'!$B$11*'Modelo Atmosférico'!$B$10)/('Modelo Atmosférico'!$B$12*'Modelo Atmosférico'!$B$13)))-1),0) -> 1646.871688 | F81: 779.9903636
A82: 14.208 | C82: 33670 | D82: 83083.31 | E82: =IF(D82<>0,('Modelo Atmosférico'!$B$9/'Modelo Atmosférico'!$B$10)*((POWER(D82/'Modelo Atmosférico'!$B$14,(-'Modelo Atmosférico'!$B$11*'Modelo Atmosférico'!$B$10)/('Modelo Atmosférico'!$B$12*'Modelo Atmosférico'!$B$13)))-1),0) -> 1642.943067 | F82: 776.0617428
A83: 14.4 | C83: 33656 | D83: 83120.81 | E83: =IF(D83<>0,('Modelo Atmosférico'!$B$9/'Modelo Atmosférico'!$B$10)*((POWER(D83/'Modelo Atmosférico'!$B$14,(-'Modelo Atmosférico'!$B$11*'Modelo Atmosférico'!$B$10)/('Modelo Atmosférico'!$B$12*'Modelo Atmosférico'!$B$13)))-1),0) -> 1639.277872 | F83: 772.3965481
A84: 14.592 | C84: 33646 | D84: 83147.6 | E84: =IF(D84<>0,('Modelo Atmosférico'!$B$9/'Modelo Atmosférico'!$B$10)*((POWER(D84/'Modelo Atmosférico'!$B$14,(-'Modelo Atmosférico'!$B$11*'Modelo Atmosférico'!$B$10)/('Modelo Atmosférico'!$B$12*'Modelo Atmosférico'!$B$13)))-1),0) -> 1636.660277 | F84: 769.7789529
A85: 14.784 | C85: 33639 | D85: 83166.35 | E85: =IF(D85<>0,('Modelo Atmosférico'!$B$9/'Modelo Atmosférico'!$B$10)*((POWER(D85/'Modelo Atmosférico'!$B$14,(-'Modelo Atmosférico'!$B$11*'Modelo Atmosférico'!$B$10)/('Modelo Atmosférico'!$B$12*'Modelo Atmosférico'!$B$13)))-1),0) -> 1634.82866 | F85: 767.9473356
A86: 14.976 | C86: 33631 | D86: 83187.78 | E86: =IF(D86<>0,('Modelo Atmosférico'!$B$9/'Modelo Atmosférico'!$B$10)*((POWER(D86/'Modelo Atmosférico'!$B$14,(-'Modelo Atmosférico'!$B$11*'Modelo Atmosférico'!$B$10)/('Modelo Atmosférico'!$B$12*'Modelo Atmosférico'!$B$13)))-1),0) -> 1632.735653 | F86: 765.8543285
A87: 15.168 | C87: 33614 | D87: 83233.33 | E87: =IF(D87<>0,('Modelo Atmosférico'!$B$9/'Modelo Atmosférico'!$B$10)*((POWER(D87/'Modelo Atmosférico'!$B$14,(-'Modelo Atmosférico'!$B$11*'Modelo Atmosférico'!$B$10)/('Modelo Atmosférico'!$B$12*'Modelo Atmosférico'!$B$13)))-1),0) -> 1628.288364 | F87: 761.4070396
A88: 15.36 | C88: 33589 | D88: 83300.3 | E88: =IF(D88<>0,('Modelo Atmosférico'!$B$9/'Modelo Atmosférico'!$B$10)*((POWER(D88/'Modelo Atmosférico'!$B$14,(-'Modelo Atmosférico'!$B$11*'Modelo Atmosférico'!$B$10)/('Modelo Atmosférico'!$B$12*'Modelo Atmosférico'!$B$13)))-1),0) -> 1621.753304 | F88: 754.8719795
A89: 15.552 | C89: 33577 | D89: 83332.45 | E89: =IF(D89<>0,('Modelo Atmosférico'!$B$9/'Modelo Atmosférico'!$B$10)*((POWER(D89/'Modelo Atmosférico'!$B$14,(-'Modelo Atmosférico'!$B$11*'Modelo Atmosférico'!$B$10)/('Modelo Atmosférico'!$B$12*'Modelo Atmosférico'!$B$13)))-1),0) -> 1618.617557 | F89: 751.7362326
A90: 15.744 | C90: 33566 | D90: 83361.92 | E90: =IF(D90<>0,('Modelo Atmosférico'!$B$9/'Modelo Atmosférico'!$B$10)*((POWER(D90/'Modelo Atmosférico'!$B$14,(-'Modelo Atmosférico'!$B$11*'Modelo Atmosférico'!$B$10)/('Modelo Atmosférico'!$B$12*'Modelo Atmosférico'!$B$13)))-1),0) -> 1615.744064 | F90: 748.8627396
A91: 15.936 | C91: 33542 | D91: 83426.22 | E91: =IF(D91<>0,('Modelo Atmosférico'!$B$9/'Modelo Atmosférico'!$B$10)*((POWER(D91/'Modelo Atmosférico'!$B$14,(-'Modelo Atmosférico'!$B$11*'Modelo Atmosférico'!$B$10)/('Modelo Atmosférico'!$B$12*'Modelo Atmosférico'!$B$13)))-1),0) -> 1609.477301 | F91: 742.5959772
A92: 16.128 | C92: 33525 | D92: 83471.77 | E92: =IF(D92<>0,('Modelo Atmosférico'!$B$9/'Modelo Atmosférico'!$B$10)*((POWER(D92/'Modelo Atmosférico'!$B$14,(-'Modelo Atmosférico'!$B$11*'Modelo Atmosférico'!$B$10)/('Modelo Atmosférico'!$B$12*'Modelo Atmosférico'!$B$13)))-1),0) -> 1605.040305 | F92: 738.1589807
A93: 16.32 | C93: 33499 | D93: 83541.43 | E93: =IF(D93<>0,('Modelo Atmosférico'!$B$9/'Modelo Atmosférico'!$B$10)*((POWER(D93/'Modelo Atmosférico'!$B$14,(-'Modelo Atmosférico'!$B$11*'Modelo Atmosférico'!$B$10)/('Modelo Atmosférico'!$B$12*'Modelo Atmosférico'!$B$13)))-1),0) -> 1598.258559 | F93: 731.3772347
A94: 16.512 | C94: 33466 | D94: 83629.84 | E94: =IF(D94<>0,('Modelo Atmosférico'!$B$9/'Modelo Atmosférico'!$B$10)*((POWER(D94/'Modelo Atmosférico'!$B$14,(-'Modelo Atmosférico'!$B$11*'Modelo Atmosférico'!$B$10)/('Modelo Atmosférico'!$B$12*'Modelo Atmosférico'!$B$13)))-1),0) -> 1589.657998 | F94: 722.7766738
A95: 16.704 | C95: 33461 | D95: 83643.24 | E95: =IF(D95<>0,('Modelo Atmosférico'!$B$9/'Modelo Atmosférico'!$B$10)*((POWER(D95/'Modelo Atmosférico'!$B$14,(-'Modelo Atmosférico'!$B$11*'Modelo Atmosférico'!$B$10)/('Modelo Atmosférico'!$B$12*'Modelo Atmosférico'!$B$13)))-1),0) -> 1588.355083 | F95: 721.4737589
A96: 16.896 | C96: 33456 | D96: 83656.64 | E96: =IF(D96<>0,('Modelo Atmosférico'!$B$9/'Modelo Atmosférico'!$B$10)*((POWER(D96/'Modelo Atmosférico'!$B$14,(-'Modelo Atmosférico'!$B$11*'Modelo Atmosférico'!$B$10)/('Modelo Atmosférico'!$B$12*'Modelo Atmosférico'!$B$13)))-1),0) -> 1587.052337 | F96: 720.171013
A97: 17.088 | C97: 33440 | D97: 83699.52 | E97: =IF(D97<>0,('Modelo Atmosférico'!$B$9/'Modelo Atmosférico'!$B$10)*((POWER(D97/'Modelo Atmosférico'!$B$14,(-'Modelo Atmosférico'!$B$11*'Modelo Atmosférico'!$B$10)/('Modelo Atmosférico'!$B$12*'Modelo Atmosférico'!$B$13)))-1),0) -> 1582.884685 | F97: 716.0033613
A98: 17.28 | C98: 33409 | D98: 83782.58 | E98: =IF(D98<>0,('Modelo Atmosférico'!$B$9/'Modelo Atmosférico'!$B$10)*((POWER(D98/'Modelo Atmosférico'!$B$14,(-'Modelo Atmosférico'!$B$11*'Modelo Atmosférico'!$B$10)/('Modelo Atmosférico'!$B$12*'Modelo Atmosférico'!$B$13)))-1),0) -> 1574.81672 | F98: 707.9353955
A99: 17.472 | C99: 33393 | D99: 83825.45 | E99: =IF(D99<>0,('Modelo Atmosférico'!$B$9/'Modelo Atmosférico'!$B$10)*((POWER(D99/'Modelo Atmosférico'!$B$14,(-'Modelo Atmosférico'!$B$11*'Modelo Atmosférico'!$B$10)/('Modelo Atmosférico'!$B$12*'Modelo Atmosférico'!$B$13)))-1),0) -> 1570.655111 | F99: =IF(D99<>0,E99-$E$3,0) -> 703.7737866
A100: 17.664 | C100: 33387 | D100: 83841.52 | E100: =IF(D100<>0,('Modelo Atmosférico'!$B$9/'Modelo Atmosférico'!$B$10)*((POWER(D100/'Modelo Atmosférico'!$B$14,(-'Modelo Atmosférico'!$B$11*'Modelo Atmosférico'!$B$10)/('Modelo Atmosférico'!$B$12*'Modelo Atmosférico'!$B$13)))-1),0) -> 1569.095558 | F100: 702.214234
A101: 17.856 | C101: 33375 | D101: 83873.68 | E101: =IF(D101<>0,('Modelo Atmosférico'!$B$9/'Modelo Atmosférico'!$B$10)*((POWER(D101/'Modelo Atmosférico'!$B$14,(-'Modelo Atmosférico'!$B$11*'Modelo Atmosférico'!$B$10)/('Modelo Atmosférico'!$B$12*'Modelo Atmosférico'!$B$13)))-1),0) -> 1565.975239 | F101: 699.0939147
A102: 18.048 | C102: 33361 | D102: 83911.2 | E102: =IF(D102<>0,('Modelo Atmosférico'!$B$9/'Modelo Atmosférico'!$B$10)*((POWER(D102/'Modelo Atmosférico'!$B$14,(-'Modelo Atmosférico'!$B$11*'Modelo Atmosférico'!$B$10)/('Modelo Atmosférico'!$B$12*'Modelo Atmosférico'!$B$13)))-1),0) -> 1562.33609 | F102: 695.4547664
A103: 18.24 | C103: 33344 | D103: 83956.75 | E103: =IF(D103<>0,('Modelo Atmosférico'!$B$9/'Modelo Atmosférico'!$B$10)*((POWER(D103/'Modelo Atmosférico'!$B$14,(-'Modelo Atmosférico'!$B$11*'Modelo Atmosférico'!$B$10)/('Modelo Atmosférico'!$B$12*'Modelo Atmosférico'!$B$13)))-1),0) -> 1557.919865 | F103: 691.0385409
A104: 18.432 | C104: 33339 | D104: 83970.14 | E104: =IF(D104<>0,('Modelo Atmosférico'!$B$9/'Modelo Atmosférico'!$B$10)*((POWER(D104/'Modelo Atmosférico'!$B$14,(-'Modelo Atmosférico'!$B$11*'Modelo Atmosférico'!$B$10)/('Modelo Atmosférico'!$B$12*'Modelo Atmosférico'!$B$13)))-1),0) -> 1556.622028 | F104: 689.7407044
A105: 18.624 | C105: 33317 | D105: 84029.1 | E105: =IF(D105<>0,('Modelo Atmosférico'!$B$9/'Modelo Atmosférico'!$B$10)*((POWER(D105/'Modelo Atmosférico'!$B$14,(-'Modelo Atmosférico'!$B$11*'Modelo Atmosférico'!$B$10)/('Modelo Atmosférico'!$B$12*'Modelo Atmosférico'!$B$13)))-1),0) -> 1550.909276 | F105: 684.0279519
A106: 18.816 | C106: 33301 | D106: 84071.98 | E106: =IF(D106<>0,('Modelo Atmosférico'!$B$9/'Modelo Atmosférico'!$B$10)*((POWER(D106/'Modelo Atmosférico'!$B$14,(-'Modelo Atmosférico'!$B$11*'Modelo Atmosférico'!$B$10)/('Modelo Atmosférico'!$B$12*'Modelo Atmosférico'!$B$13)))-1),0) -> 1546.756585 | F106: 679.8752611
A107: 19.008 | C107: 33301 | D107: 84071.98 | E107: =IF(D107<>0,('Modelo Atmosférico'!$B$9/'Modelo Atmosférico'!$B$10)*((POWER(D107/'Modelo Atmosférico'!$B$14,(-'Modelo Atmosférico'!$B$11*'Modelo Atmosférico'!$B$10)/('Modelo Atmosférico'!$B$12*'Modelo Atmosférico'!$B$13)))-1),0) -> 1546.756585 | F107: 679.8752611
A108: 19.2 | C108: 33286 | D108: 84112.17 | E108: =IF(D108<>0,('Modelo Atmosférico'!$B$9/'Modelo Atmosférico'!$B$10)*((POWER(D108/'Modelo Atmosférico'!$B$14,(-'Modelo Atmosférico'!$B$11*'Modelo Atmosférico'!$B$10)/('Modelo Atmosférico'!$B$12*'Modelo Atmosférico'!$B$13)))-1),0) -> 1542.865963 | F108: 675.9846387
A109: 19.392 | C109: 33269 | D109: 84157.73 | E109: =IF(D109<>0,('Modelo Atmosférico'!$B$9/'Modelo Atmosférico'!$B$10)*((POWER(D109/'Modelo Atmosférico'!$B$14,(-'Modelo Atmosférico'!$B$11*'Modelo Atmosférico'!$B$10)/('Modelo Atmosférico'!$B$12*'Modelo Atmosférico'!$B$13)))-1),0) -> 1538.457314 | F109: 671.5759895
A110: 19.584 | C110: 33260 | D110: 84181.84 | E110: =IF(D110<>0,('Modelo Atmosférico'!$B$9/'Modelo Atmosférico'!$B$10)*((POWER(D110/'Modelo Atmosférico'!$B$14,(-'Modelo Atmosférico'!$B$11*'Modelo Atmosférico'!$B$10)/('Modelo Atmosférico'!$B$12*'Modelo Atmosférico'!$B$13)))-1),0) -> 1536.125072 | F110: 669.2437483
A111: 19.776 | C111: 33254 | D111: 84197.92 | E111: =IF(D111<>0,('Modelo Atmosférico'!$B$9/'Modelo Atmosférico'!$B$10)*((POWER(D111/'Modelo Atmosférico'!$B$14,(-'Modelo Atmosférico'!$B$11*'Modelo Atmosférico'!$B$10)/('Modelo Atmosférico'!$B$12*'Modelo Atmosférico'!$B$13)))-1),0) -> 1534.569901 | F111: 667.6885766
A112: 19.968 | C112: 33247 | D112: 84216.69 | E112: =IF(D112<>0,('Modelo Atmosférico'!$B$9/'Modelo Atmosférico'!$B$10)*((POWER(D112/'Modelo Atmosférico'!$B$14,(-'Modelo Atmosférico'!$B$11*'Modelo Atmosférico'!$B$10)/('Modelo Atmosférico'!$B$12*'Modelo Atmosférico'!$B$13)))-1),0) -> 1532.754871 | F112: 665.8735467
A113: 20.16 | C113: 33239 | D113: 84238.13 | E113: =IF(D113<>0,('Modelo Atmosférico'!$B$9/'Modelo Atmosférico'!$B$10)*((POWER(D113/'Modelo Atmosférico'!$B$14,(-'Modelo Atmosférico'!$B$11*'Modelo Atmosférico'!$B$10)/('Modelo Atmosférico'!$B$12*'Modelo Atmosférico'!$B$13)))-1),0) -> 1530.682057 | F113: 663.8007326
A114: 20.352 | C114: 33226 | D114: 84272.97 | E114: =IF(D114<>0,('Modelo Atmosférico'!$B$9/'Modelo Atmosférico'!$B$10)*((POWER(D114/'Modelo Atmosférico'!$B$14,(-'Modelo Atmosférico'!$B$11*'Modelo Atmosférico'!$B$10)/('Modelo Atmosférico'!$B$12*'Modelo Atmosférico'!$B$13)))-1),0) -> 1527.314645 | F114: 660.4333206
A115: 20.544 | C115: 33214 | D115: 84305.13 | E115: =IF(D115<>0,('Modelo Atmosférico'!$B$9/'Modelo Atmosférico'!$B$10)*((POWER(D115/'Modelo Atmosférico'!$B$14,(-'Modelo Atmosférico'!$B$11*'Modelo Atmosférico'!$B$10)/('Modelo Atmosférico'!$B$12*'Modelo Atmosférico'!$B$13)))-1),0) -> 1524.207265 | F115: 657.3259407
A116: 20.736 | C116: 33207 | D116: 84323.88 | E116: =IF(D116<>0,('Modelo Atmosférico'!$B$9/'Modelo Atmosférico'!$B$10)*((POWER(D116/'Modelo Atmosférico'!$B$14,(-'Modelo Atmosférico'!$B$11*'Modelo Atmosférico'!$B$10)/('Modelo Atmosférico'!$B$12*'Modelo Atmosférico'!$B$13)))-1),0) -> 1522.396036 | F116: 655.5147116
A117: 20.928 | C117: 33187 | D117: 84377.48 | E117: =IF(D117<>0,('Modelo Atmosférico'!$B$9/'Modelo Atmosférico'!$B$10)*((POWER(D117/'Modelo Atmosférico'!$B$14,(-'Modelo Atmosférico'!$B$11*'Modelo Atmosférico'!$B$10)/('Modelo Atmosférico'!$B$12*'Modelo Atmosférico'!$B$13)))-1),0) -> 1517.220133 | F117: 650.3388092
A118: 21.12 | C118: 33183 | D118: 84388.2 | E118: =IF(D118<>0,('Modelo Atmosférico'!$B$9/'Modelo Atmosférico'!$B$10)*((POWER(D118/'Modelo Atmosférico'!$B$14,(-'Modelo Atmosférico'!$B$11*'Modelo Atmosférico'!$B$10)/('Modelo Atmosférico'!$B$12*'Modelo Atmosférico'!$B$13)))-1),0) -> 1516.185272 | F118: 649.3039482
A119: 21.312 | C119: 33173 | D119: 84415.01 | E119: =IF(D119<>0,('Modelo Atmosférico'!$B$9/'Modelo Atmosférico'!$B$10)*((POWER(D119/'Modelo Atmosférico'!$B$14,(-'Modelo Atmosférico'!$B$11*'Modelo Atmosférico'!$B$10)/('Modelo Atmosférico'!$B$12*'Modelo Atmosférico'!$B$13)))-1),0) -> 1513.59762 | F119: 646.7162964
A120: 21.504 | C120: 33167 | D120: 84431.09 | E120: =IF(D120<>0,('Modelo Atmosférico'!$B$9/'Modelo Atmosférico'!$B$10)*((POWER(D120/'Modelo Atmosférico'!$B$14,(-'Modelo Atmosférico'!$B$11*'Modelo Atmosférico'!$B$10)/('Modelo Atmosférico'!$B$12*'Modelo Atmosférico'!$B$13)))-1),0) -> 1512.045928 | F120: 645.1646036
A121: 21.696 | C121: 33152 | D121: 84471.29 | E121: =IF(D121<>0,('Modelo Atmosférico'!$B$9/'Modelo Atmosférico'!$B$10)*((POWER(D121/'Modelo Atmosférico'!$B$14,(-'Modelo Atmosférico'!$B$11*'Modelo Atmosférico'!$B$10)/('Modelo Atmosférico'!$B$12*'Modelo Atmosférico'!$B$13)))-1),0) -> 1508.167742 | F121: 641.2864184
A122: 21.888 | C122: 33141 | D122: 84500.77 | E122: =IF(D122<>0,('Modelo Atmosférico'!$B$9/'Modelo Atmosférico'!$B$10)*((POWER(D122/'Modelo Atmosférico'!$B$14,(-'Modelo Atmosférico'!$B$11*'Modelo Atmosférico'!$B$10)/('Modelo Atmosférico'!$B$12*'Modelo Atmosférico'!$B$13)))-1),0) -> 1505.32469 | F122: 638.4433656
A123: 22.08 | C123: 33131 | D123: 84527.58 | E123: =IF(D123<>0,('Modelo Atmosférico'!$B$9/'Modelo Atmosférico'!$B$10)*((POWER(D123/'Modelo Atmosférico'!$B$14,(-'Modelo Atmosférico'!$B$11*'Modelo Atmosférico'!$B$10)/('Modelo Atmosférico'!$B$12*'Modelo Atmosférico'!$B$13)))-1),0) -> 1502.739829 | F123: 635.858505
A124: 22.272 | C124: 33116 | D124: 84567.78 | E124: =IF(D124<>0,('Modelo Atmosférico'!$B$9/'Modelo Atmosférico'!$B$10)*((POWER(D124/'Modelo Atmosférico'!$B$14,(-'Modelo Atmosférico'!$B$11*'Modelo Atmosférico'!$B$10)/('Modelo Atmosférico'!$B$12*'Modelo Atmosférico'!$B$13)))-1),0) -> 1498.865228 | F124: 631.983904
A125: 22.464 | C125: 33109 | D125: 84586.54 | E125: =IF(D125<>0,('Modelo Atmosférico'!$B$9/'Modelo Atmosférico'!$B$10)*((POWER(D125/'Modelo Atmosférico'!$B$14,(-'Modelo Atmosférico'!$B$11*'Modelo Atmosférico'!$B$10)/('Modelo Atmosférico'!$B$12*'Modelo Atmosférico'!$B$13)))-1),0) -> 1497.057591 | F125: 630.1762673
A126: 22.656 | C126: 33106 | D126: 84594.58 | E126: =IF(D126<>0,('Modelo Atmosférico'!$B$9/'Modelo Atmosférico'!$B$10)*((POWER(D126/'Modelo Atmosférico'!$B$14,(-'Modelo Atmosférico'!$B$11*'Modelo Atmosférico'!$B$10)/('Modelo Atmosférico'!$B$12*'Modelo Atmosférico'!$B$13)))-1),0) -> 1496.282989 | F126: 629.4016652
A127: 22.848 | C127: 33082 | D127: 84658.91 | E127: =IF(D127<>0,('Modelo Atmosférico'!$B$9/'Modelo Atmosférico'!$B$10)*((POWER(D127/'Modelo Atmosférico'!$B$14,(-'Modelo Atmosférico'!$B$11*'Modelo Atmosférico'!$B$10)/('Modelo Atmosférico'!$B$12*'Modelo Atmosférico'!$B$13)))-1),0) -> 1490.087355 | F127: 623.2060308
A128: 23.04 | C128: 33073 | D128: 84683.03 | E128: =IF(D128<>0,('Modelo Atmosférico'!$B$9/'Modelo Atmosférico'!$B$10)*((POWER(D128/'Modelo Atmosférico'!$B$14,(-'Modelo Atmosférico'!$B$11*'Modelo Atmosférico'!$B$10)/('Modelo Atmosférico'!$B$12*'Modelo Atmosférico'!$B$13)))-1),0) -> 1487.765336 | F128: 620.8840116
A129: 23.232 | C129: 33067 | D129: 84699.11 | E129: =IF(D129<>0,('Modelo Atmosférico'!$B$9/'Modelo Atmosférico'!$B$10)*((POWER(D129/'Modelo Atmosférico'!$B$14,(-'Modelo Atmosférico'!$B$11*'Modelo Atmosférico'!$B$10)/('Modelo Atmosférico'!$B$12*'Modelo Atmosférico'!$B$13)))-1),0) -> 1486.21762 | F129: 619.3362964
A130: 23.424 | C130: 33051 | D130: 84742 | E130: =IF(D130<>0,('Modelo Atmosférico'!$B$9/'Modelo Atmosférico'!$B$10)*((POWER(D130/'Modelo Atmosférico'!$B$14,(-'Modelo Atmosférico'!$B$11*'Modelo Atmosférico'!$B$10)/('Modelo Atmosférico'!$B$12*'Modelo Atmosférico'!$B$13)))-1),0) -> 1482.090581 | F130: 615.2092565
A131: 23.616 | C131: 33042 | D131: 84766.13 | E131: =IF(D131<>0,('Modelo Atmosférico'!$B$9/'Modelo Atmosférico'!$B$10)*((POWER(D131/'Modelo Atmosférico'!$B$14,(-'Modelo Atmosférico'!$B$11*'Modelo Atmosférico'!$B$10)/('Modelo Atmosférico'!$B$12*'Modelo Atmosférico'!$B$13)))-1),0) -> 1479.769443 | F131: 612.888119
A132: 23.808 | C132: 33030 | D132: 84798.28 | E132: =IF(D132<>0,('Modelo Atmosférico'!$B$9/'Modelo Atmosférico'!$B$10)*((POWER(D132/'Modelo Atmosférico'!$B$14,(-'Modelo Atmosférico'!$B$11*'Modelo Atmosférico'!$B$10)/('Modelo Atmosférico'!$B$12*'Modelo Atmosférico'!$B$13)))-1),0) -> 1476.677669 | F132: 609.7963447
A133: 24 | C133: 33020 | D133: 84825.09 | E133: =IF(D133<>0,('Modelo Atmosférico'!$B$9/'Modelo Atmosférico'!$B$10)*((POWER(D133/'Modelo Atmosférico'!$B$14,(-'Modelo Atmosférico'!$B$11*'Modelo Atmosférico'!$B$10)/('Modelo Atmosférico'!$B$12*'Modelo Atmosférico'!$B$13)))-1),0) -> 1474.100153 | F133: 607.2188288
A134: 24.192 | C134: 33007 | D134: 84859.94 | E134: =IF(D134<>0,('Modelo Atmosférico'!$B$9/'Modelo Atmosférico'!$B$10)*((POWER(D134/'Modelo Atmosférico'!$B$14,(-'Modelo Atmosférico'!$B$11*'Modelo Atmosférico'!$B$10)/('Modelo Atmosférico'!$B$12*'Modelo Atmosférico'!$B$13)))-1),0) -> 1470.750656 | F134: 603.8693324
A135: 24.384 | C135: 32997 | D135: 84886.74 | E135: =IF(D135<>0,('Modelo Atmosférico'!$B$9/'Modelo Atmosférico'!$B$10)*((POWER(D135/'Modelo Atmosférico'!$B$14,(-'Modelo Atmosférico'!$B$11*'Modelo Atmosférico'!$B$10)/('Modelo Atmosférico'!$B$12*'Modelo Atmosférico'!$B$13)))-1),0) -> 1468.175618 | F135: 601.2942935
A136: 24.576 | C136: 32985 | D136: 84918.91 | E136: =IF(D136<>0,('Modelo Atmosférico'!$B$9/'Modelo Atmosférico'!$B$10)*((POWER(D136/'Modelo Atmosférico'!$B$14,(-'Modelo Atmosférico'!$B$11*'Modelo Atmosférico'!$B$10)/('Modelo Atmosférico'!$B$12*'Modelo Atmosférico'!$B$13)))-1),0) -> 1465.085479 | F136: 598.2041553
A137: 24.768 | C137: 32972 | D137: 84953.75 | E137: =IF(D137<>0,('Modelo Atmosférico'!$B$9/'Modelo Atmosférico'!$B$10)*((POWER(D137/'Modelo Atmosférico'!$B$14,(-'Modelo Atmosférico'!$B$11*'Modelo Atmosférico'!$B$10)/('Modelo Atmosférico'!$B$12*'Modelo Atmosférico'!$B$13)))-1),0) -> 1461.739939 | F137: 594.8586152
A138: 24.96 | C138: 32957 | D138: 84993.97 | E138: =IF(D138<>0,('Modelo Atmosférico'!$B$9/'Modelo Atmosférico'!$B$10)*((POWER(D138/'Modelo Atmosférico'!$B$14,(-'Modelo Atmosférico'!$B$11*'Modelo Atmosférico'!$B$10)/('Modelo Atmosférico'!$B$12*'Modelo Atmosférico'!$B$13)))-1),0) -> 1457.879161 | F138: 590.9978373
A139: 25.152 | C139: 32953 | D139: 85004.69 | E139: =IF(D139<>0,('Modelo Atmosférico'!$B$9/'Modelo Atmosférico'!$B$10)*((POWER(D139/'Modelo Atmosférico'!$B$14,(-'Modelo Atmosférico'!$B$11*'Modelo Atmosférico'!$B$10)/('Modelo Atmosférico'!$B$12*'Modelo Atmosférico'!$B$13)))-1),0) -> 1456.850382 | F139: 589.9690582
A140: 25.344 | C140: 32947 | D140: 85020.77 | E140: =IF(D140<>0,('Modelo Atmosférico'!$B$9/'Modelo Atmosférico'!$B$10)*((POWER(D140/'Modelo Atmosférico'!$B$14,(-'Modelo Atmosférico'!$B$11*'Modelo Atmosférico'!$B$10)/('Modelo Atmosférico'!$B$12*'Modelo Atmosférico'!$B$13)))-1),0) -> 1455.307411 | F140: 588.4260865
A141: 25.536 | C141: 32934 | D141: 85055.63 | E141: =IF(D141<>0,('Modelo Atmosférico'!$B$9/'Modelo Atmosférico'!$B$10)*((POWER(D141/'Modelo Atmosférico'!$B$14,(-'Modelo Atmosférico'!$B$11*'Modelo Atmosférico'!$B$10)/('Modelo Atmosférico'!$B$12*'Modelo Atmosférico'!$B$13)))-1),0) -> 1451.963197 | F141: 585.0818733
A142: 25.728 | C142: 32920 | D142: 85093.15 | E142: =IF(D142<>0,('Modelo Atmosférico'!$B$9/'Modelo Atmosférico'!$B$10)*((POWER(D142/'Modelo Atmosférico'!$B$14,(-'Modelo Atmosférico'!$B$11*'Modelo Atmosférico'!$B$10)/('Modelo Atmosférico'!$B$12*'Modelo Atmosférico'!$B$13)))-1),0) -> 1448.365043 | F142: 581.4837191
A143: 25.92 | C143: 32904 | D143: 85136.05 | E143: =IF(D143<>0,('Modelo Atmosférico'!$B$9/'Modelo Atmosférico'!$B$10)*((POWER(D143/'Modelo Atmosférico'!$B$14,(-'Modelo Atmosférico'!$B$11*'Modelo Atmosférico'!$B$10)/('Modelo Atmosférico'!$B$12*'Modelo Atmosférico'!$B$13)))-1),0) -> 1444.252523 | F143: 577.3711986
A144: 26.112 | C144: 32901 | D144: 85144.09 | E144: =IF(D144<>0,('Modelo Atmosférico'!$B$9/'Modelo Atmosférico'!$B$10)*((POWER(D144/'Modelo Atmosférico'!$B$14,(-'Modelo Atmosférico'!$B$11*'Modelo Atmosférico'!$B$10)/('Modelo Atmosférico'!$B$12*'Modelo Atmosférico'!$B$13)))-1),0) -> 1443.481971 | F144: 576.6006473
A145: 26.304 | C145: 32896 | D145: 85157.48 | E145: =IF(D145<>0,('Modelo Atmosférico'!$B$9/'Modelo Atmosférico'!$B$10)*((POWER(D145/'Modelo Atmosférico'!$B$14,(-'Modelo Atmosférico'!$B$11*'Modelo Atmosférico'!$B$10)/('Modelo Atmosférico'!$B$12*'Modelo Atmosférico'!$B$13)))-1),0) -> 1442.198808 | F145: 575.3174841
A146: 26.496 | C146: 32877 | D146: 85208.42 | E146: =IF(D146<>0,('Modelo Atmosférico'!$B$9/'Modelo Atmosférico'!$B$10)*((POWER(D146/'Modelo Atmosférico'!$B$14,(-'Modelo Atmosférico'!$B$11*'Modelo Atmosférico'!$B$10)/('Modelo Atmosférico'!$B$12*'Modelo Atmosférico'!$B$13)))-1),0) -> 1437.318723 | F146: 570.4373986
A147: 26.688 | C147: 32863 | D147: 85245.95 | E147: =IF(D147<>0,('Modelo Atmosférico'!$B$9/'Modelo Atmosférico'!$B$10)*((POWER(D147/'Modelo Atmosférico'!$B$14,(-'Modelo Atmosférico'!$B$11*'Modelo Atmosférico'!$B$10)/('Modelo Atmosférico'!$B$12*'Modelo Atmosférico'!$B$13)))-1),0) -> 1433.724835 | F147: 566.843511
A148: 26.88 | C148: 32860 | D148: 85254 | E148: =IF(D148<>0,('Modelo Atmosférico'!$B$9/'Modelo Atmosférico'!$B$10)*((POWER(D148/'Modelo Atmosférico'!$B$14,(-'Modelo Atmosférico'!$B$11*'Modelo Atmosférico'!$B$10)/('Modelo Atmosférico'!$B$12*'Modelo Atmosférico'!$B$13)))-1),0) -> 1432.954131 | F148: 566.0728067
A149: 27.072 | C149: 32860 | D149: 85254 | E149: =IF(D149<>0,('Modelo Atmosférico'!$B$9/'Modelo Atmosférico'!$B$10)*((POWER(D149/'Modelo Atmosférico'!$B$14,(-'Modelo Atmosférico'!$B$11*'Modelo Atmosférico'!$B$10)/('Modelo Atmosférico'!$B$12*'Modelo Atmosférico'!$B$13)))-1),0) -> 1432.954131 | F149: 566.0728067
A150: 27.264 | C150: 32841 | D150: 85304.94 | E150: =IF(D150<>0,('Modelo Atmosférico'!$B$9/'Modelo Atmosférico'!$B$10)*((POWER(D150/'Modelo Atmosférico'!$B$14,(-'Modelo Atmosférico'!$B$11*'Modelo Atmosférico'!$B$10)/('Modelo Atmosférico'!$B$12*'Modelo Atmosférico'!$B$13)))-1),0) -> 1428.078518 | F150: 561.1971941
A151: 27.456 | C151: 32821 | D151: 85358.55 | E151: =IF(D151<>0,('Modelo Atmosférico'!$B$9/'Modelo Atmosférico'!$B$10)*((POWER(D151/'Modelo Atmosférico'!$B$14,(-'Modelo Atmosférico'!$B$11*'Modelo Atmosférico'!$B$10)/('Modelo Atmosférico'!$B$12*'Modelo Atmosférico'!$B$13)))-1),0) -> 1422.949898 | F151: 556.0685736
A152: 27.648 | C152: 32818 | D152: 85366.59 | E152: =IF(D152<>0,('Modelo Atmosférico'!$B$9/'Modelo Atmosférico'!$B$10)*((POWER(D152/'Modelo Atmosférico'!$B$14,(-'Modelo Atmosférico'!$B$11*'Modelo Atmosférico'!$B$10)/('Modelo Atmosférico'!$B$12*'Modelo Atmosférico'!$B$13)))-1),0) -> 1422.180973 | F152: 555.299649
A153: 27.84 | C153: 32816 | D153: 85371.95 | E153: =IF(D153<>0,('Modelo Atmosférico'!$B$9/'Modelo Atmosférico'!$B$10)*((POWER(D153/'Modelo Atmosférico'!$B$14,(-'Modelo Atmosférico'!$B$11*'Modelo Atmosférico'!$B$10)/('Modelo Atmosférico'!$B$12*'Modelo Atmosférico'!$B$13)))-1),0) -> 1421.668389 | F153: 554.7870651
A154: 28.032 | C154: 32798 | D154: 85420.22 | E154: =IF(D154<>0,('Modelo Atmosférico'!$B$9/'Modelo Atmosférico'!$B$10)*((POWER(D154/'Modelo Atmosférico'!$B$14,(-'Modelo Atmosférico'!$B$11*'Modelo Atmosférico'!$B$10)/('Modelo Atmosférico'!$B$12*'Modelo Atmosférico'!$B$13)))-1),0) -> 1417.053439 | F154: 550.1721152
A155: 28.224 | C155: 32784 | D155: 85457.75 | E155: =IF(D155<>0,('Modelo Atmosférico'!$B$9/'Modelo Atmosférico'!$B$10)*((POWER(D155/'Modelo Atmosférico'!$B$14,(-'Modelo Atmosférico'!$B$11*'Modelo Atmosférico'!$B$10)/('Modelo Atmosférico'!$B$12*'Modelo Atmosférico'!$B$13)))-1),0) -> 1413.466767 | F155: 546.5854433
A156: 28.416 | C156: 32775 | D156: 85481.88 | E156: =IF(D156<>0,('Modelo Atmosférico'!$B$9/'Modelo Atmosférico'!$B$10)*((POWER(D156/'Modelo Atmosférico'!$B$14,(-'Modelo Atmosférico'!$B$11*'Modelo Atmosférico'!$B$10)/('Modelo Atmosférico'!$B$12*'Modelo Atmosférico'!$B$13)))-1),0) -> 1411.161382 | F156: 544.280058
A157: 28.608 | C157: 32772 | D157: 85489.92 | E157: =IF(D157<>0,('Modelo Atmosférico'!$B$9/'Modelo Atmosférico'!$B$10)*((POWER(D157/'Modelo Atmosférico'!$B$14,(-'Modelo Atmosférico'!$B$11*'Modelo Atmosférico'!$B$10)/('Modelo Atmosférico'!$B$12*'Modelo Atmosférico'!$B$13)))-1),0) -> 1410.393356 | F157: 543.5120318
A158: 28.8 | C158: 32757 | D158: 85530.14 | E158: =IF(D158<>0,('Modelo Atmosférico'!$B$9/'Modelo Atmosférico'!$B$10)*((POWER(D158/'Modelo Atmosférico'!$B$14,(-'Modelo Atmosférico'!$B$11*'Modelo Atmosférico'!$B$10)/('Modelo Atmosférico'!$B$12*'Modelo Atmosférico'!$B$13)))-1),0) -> 1406.552192 | F158: 539.6708678
A159: 28.992 | C159: 32739 | D159: 85578.4 | E159: =IF(D159<>0,('Modelo Atmosférico'!$B$9/'Modelo Atmosférico'!$B$10)*((POWER(D159/'Modelo Atmosférico'!$B$14,(-'Modelo Atmosférico'!$B$11*'Modelo Atmosférico'!$B$10)/('Modelo Atmosférico'!$B$12*'Modelo Atmosférico'!$B$13)))-1),0) -> 1401.945107 | F159: 535.063783
A160: 29.184 | C160: 32730 | D160: 85602.53 | E160: =IF(D160<>0,('Modelo Atmosférico'!$B$9/'Modelo Atmosférico'!$B$10)*((POWER(D160/'Modelo Atmosférico'!$B$14,(-'Modelo Atmosférico'!$B$11*'Modelo Atmosférico'!$B$10)/('Modelo Atmosférico'!$B$12*'Modelo Atmosférico'!$B$13)))-1),0) -> 1399.642354 | F160: 532.7610295
A161: 29.376 | C161: 32727 | D161: 85610.58 | E161: =IF(D161<>0,('Modelo Atmosférico'!$B$9/'Modelo Atmosférico'!$B$10)*((POWER(D161/'Modelo Atmosférico'!$B$14,(-'Modelo Atmosférico'!$B$11*'Modelo Atmosférico'!$B$10)/('Modelo Atmosférico'!$B$12*'Modelo Atmosférico'!$B$13)))-1),0) -> 1398.87425 | F161: 531.9929257
A162: 29.568 | C162: 32714 | D162: 85645.44 | E162: =IF(D162<>0,('Modelo Atmosférico'!$B$9/'Modelo Atmosférico'!$B$10)*((POWER(D162/'Modelo Atmosférico'!$B$14,(-'Modelo Atmosférico'!$B$11*'Modelo Atmosférico'!$B$10)/('Modelo Atmosférico'!$B$12*'Modelo Atmosférico'!$B$13)))-1),0) -> 1395.548701 | F162: 528.6673771
A163: 29.76 | C163: 32707 | D163: 85664.2 | E163: =IF(D163<>0,('Modelo Atmosférico'!$B$9/'Modelo Atmosférico'!$B$10)*((POWER(D163/'Modelo Atmosférico'!$B$14,(-'Modelo Atmosférico'!$B$11*'Modelo Atmosférico'!$B$10)/('Modelo Atmosférico'!$B$12*'Modelo Atmosférico'!$B$13)))-1),0) -> 1393.759502 | F163: =IF(D163<>0,E163-$E$3,0) -> 526.878178
A164: 29.952 | C164: 32694 | D164: 85699.06 | E164: =IF(D164<>0,('Modelo Atmosférico'!$B$9/'Modelo Atmosférico'!$B$10)*((POWER(D164/'Modelo Atmosférico'!$B$14,(-'Modelo Atmosférico'!$B$11*'Modelo Atmosférico'!$B$10)/('Modelo Atmosférico'!$B$12*'Modelo Atmosférico'!$B$13)))-1),0) -> 1390.435639 | F164: 523.5543147
A165: 30.144 | C165: 32695 | D165: 85696.38 | E165: =IF(D165<>0,('Modelo Atmosférico'!$B$9/'Modelo Atmosférico'!$B$10)*((POWER(D165/'Modelo Atmosférico'!$B$14,(-'Modelo Atmosférico'!$B$11*'Modelo Atmosférico'!$B$10)/('Modelo Atmosférico'!$B$12*'Modelo Atmosférico'!$B$13)))-1),0) -> 1390.691135 | F165: 523.809811
A166: 30.336 | C166: 32670 | D166: 85763.41 | E166: =IF(D166<>0,('Modelo Atmosférico'!$B$9/'Modelo Atmosférico'!$B$10)*((POWER(D166/'Modelo Atmosférico'!$B$14,(-'Modelo Atmosférico'!$B$11*'Modelo Atmosférico'!$B$10)/('Modelo Atmosférico'!$B$12*'Modelo Atmosférico'!$B$13)))-1),0) -> 1384.302811 | F166: 517.4214866
A167: 30.528 | C167: 32669 | D167: 85766.09 | E167: =IF(D167<>0,('Modelo Atmosférico'!$B$9/'Modelo Atmosférico'!$B$10)*((POWER(D167/'Modelo Atmosférico'!$B$14,(-'Modelo Atmosférico'!$B$11*'Modelo Atmosférico'!$B$10)/('Modelo Atmosférico'!$B$12*'Modelo Atmosférico'!$B$13)))-1),0) -> 1384.047476 | F167: 517.166152
A168: 30.72 | C168: 32649 | D168: 85819.72 | E168: =IF(D168<>0,('Modelo Atmosférico'!$B$9/'Modelo Atmosférico'!$B$10)*((POWER(D168/'Modelo Atmosférico'!$B$14,(-'Modelo Atmosférico'!$B$11*'Modelo Atmosférico'!$B$10)/('Modelo Atmosférico'!$B$12*'Modelo Atmosférico'!$B$13)))-1),0) -> 1378.939285 | F168: 512.0579606
A169: 30.912 | C169: 32645 | D169: 85830.45 | E169: =IF(D169<>0,('Modelo Atmosférico'!$B$9/'Modelo Atmosférico'!$B$10)*((POWER(D169/'Modelo Atmosférico'!$B$14,(-'Modelo Atmosférico'!$B$11*'Modelo Atmosférico'!$B$10)/('Modelo Atmosférico'!$B$12*'Modelo Atmosférico'!$B$13)))-1),0) -> 1377.917576 | F169: 511.0362517
A170: 31.104 | C170: 32639 | D170: 85846.53 | E170: =IF(D170<>0,('Modelo Atmosférico'!$B$9/'Modelo Atmosférico'!$B$10)*((POWER(D170/'Modelo Atmosférico'!$B$14,(-'Modelo Atmosférico'!$B$11*'Modelo Atmosférico'!$B$10)/('Modelo Atmosférico'!$B$12*'Modelo Atmosférico'!$B$13)))-1),0) -> 1376.386634 | F170: 509.5053101
A171: 31.296 | C171: 32617 | D171: 85905.52 | E171: =IF(D171<>0,('Modelo Atmosférico'!$B$9/'Modelo Atmosférico'!$B$10)*((POWER(D171/'Modelo Atmosférico'!$B$14,(-'Modelo Atmosférico'!$B$11*'Modelo Atmosférico'!$B$10)/('Modelo Atmosférico'!$B$12*'Modelo Atmosférico'!$B$13)))-1),0) -> 1370.772313 | F171: 503.8909894
A172: 31.488 | C172: 32614 | D172: 85913.57 | E172: =IF(D172<>0,('Modelo Atmosférico'!$B$9/'Modelo Atmosférico'!$B$10)*((POWER(D172/'Modelo Atmosférico'!$B$14,(-'Modelo Atmosférico'!$B$11*'Modelo Atmosférico'!$B$10)/('Modelo Atmosférico'!$B$12*'Modelo Atmosférico'!$B$13)))-1),0) -> 1370.006404 | F172: 503.1250799
A173: 31.68 | C173: 32606 | D173: 85935.02 | E173: =IF(D173<>0,('Modelo Atmosférico'!$B$9/'Modelo Atmosférico'!$B$10)*((POWER(D173/'Modelo Atmosférico'!$B$14,(-'Modelo Atmosférico'!$B$11*'Modelo Atmosférico'!$B$10)/('Modelo Atmosférico'!$B$12*'Modelo Atmosférico'!$B$13)))-1),0) -> 1367.965848 | F173: 501.084524
A174: 31.872 | C174: 32590 | D174: 85977.92 | E174: =IF(D174<>0,('Modelo Atmosférico'!$B$9/'Modelo Atmosférico'!$B$10)*((POWER(D174/'Modelo Atmosférico'!$B$14,(-'Modelo Atmosférico'!$B$11*'Modelo Atmosférico'!$B$10)/('Modelo Atmosférico'!$B$12*'Modelo Atmosférico'!$B$13)))-1),0) -> 1363.885973 | F174: 497.0046491
A175: 32.064 | C175: 32576 | D175: 86015.47 | E175: =IF(D175<>0,('Modelo Atmosférico'!$B$9/'Modelo Atmosférico'!$B$10)*((POWER(D175/'Modelo Atmosférico'!$B$14,(-'Modelo Atmosférico'!$B$11*'Modelo Atmosférico'!$B$10)/('Modelo Atmosférico'!$B$12*'Modelo Atmosférico'!$B$13)))-1),0) -> 1360.316247 | F175: 493.4349225
A176: 32.256 | C176: 32571 | D176: 86028.88 | E176: =IF(D176<>0,('Modelo Atmosférico'!$B$9/'Modelo Atmosférico'!$B$10)*((POWER(D176/'Modelo Atmosférico'!$B$14,(-'Modelo Atmosférico'!$B$11*'Modelo Atmosférico'!$B$10)/('Modelo Atmosférico'!$B$12*'Modelo Atmosférico'!$B$13)))-1),0) -> 1359.041718 | F176: 492.1603938
A177: 32.448 | C177: 32553 | D177: 86077.14 | E177: =IF(D177<>0,('Modelo Atmosférico'!$B$9/'Modelo Atmosférico'!$B$10)*((POWER(D177/'Modelo Atmosférico'!$B$14,(-'Modelo Atmosférico'!$B$11*'Modelo Atmosférico'!$B$10)/('Modelo Atmosférico'!$B$12*'Modelo Atmosférico'!$B$13)))-1),0) -> 1354.456266 | F177: 487.5749421
A178: 32.64 | C178: 32539 | D178: 86114.69 | E178: =IF(D178<>0,('Modelo Atmosférico'!$B$9/'Modelo Atmosférico'!$B$10)*((POWER(D178/'Modelo Atmosférico'!$B$14,(-'Modelo Atmosférico'!$B$11*'Modelo Atmosférico'!$B$10)/('Modelo Atmosférico'!$B$12*'Modelo Atmosférico'!$B$13)))-1),0) -> 1350.889871 | F178: 484.008547
A179: 32.832 | C179: 32539 | D179: 86114.69 | E179: =IF(D179<>0,('Modelo Atmosférico'!$B$9/'Modelo Atmosférico'!$B$10)*((POWER(D179/'Modelo Atmosférico'!$B$14,(-'Modelo Atmosférico'!$B$11*'Modelo Atmosférico'!$B$10)/('Modelo Atmosférico'!$B$12*'Modelo Atmosférico'!$B$13)))-1),0) -> 1350.889871 | F179: 484.008547
A180: 33.024 | C180: 32514 | D180: 86181.73 | E180: =IF(D180<>0,('Modelo Atmosférico'!$B$9/'Modelo Atmosférico'!$B$10)*((POWER(D180/'Modelo Atmosférico'!$B$14,(-'Modelo Atmosférico'!$B$11*'Modelo Atmosférico'!$B$10)/('Modelo Atmosférico'!$B$12*'Modelo Atmosférico'!$B$13)))-1),0) -> 1344.525727 | F180: 477.644403
A181: 33.216 | C181: 32505 | D181: 86205.87 | E181: =IF(D181<>0,('Modelo Atmosférico'!$B$9/'Modelo Atmosférico'!$B$10)*((POWER(D181/'Modelo Atmosférico'!$B$14,(-'Modelo Atmosférico'!$B$11*'Modelo Atmosférico'!$B$10)/('Modelo Atmosférico'!$B$12*'Modelo Atmosférico'!$B$13)))-1),0) -> 1342.235085 | F181: 475.3537612
A182: 33.408 | C182: 32494 | D182: 86235.37 | E182: =IF(D182<>0,('Modelo Atmosférico'!$B$9/'Modelo Atmosférico'!$B$10)*((POWER(D182/'Modelo Atmosférico'!$B$14,(-'Modelo Atmosférico'!$B$11*'Modelo Atmosférico'!$B$10)/('Modelo Atmosférico'!$B$12*'Modelo Atmosférico'!$B$13)))-1),0) -> 1339.436539 | F182: 472.5552147
A183: 33.6 | C183: 32485 | D183: 86259.5 | E183: =IF(D183<>0,('Modelo Atmosférico'!$B$9/'Modelo Atmosférico'!$B$10)*((POWER(D183/'Modelo Atmosférico'!$B$14,(-'Modelo Atmosférico'!$B$11*'Modelo Atmosférico'!$B$10)/('Modelo Atmosférico'!$B$12*'Modelo Atmosférico'!$B$13)))-1),0) -> 1337.147999 | F183: 470.2666748
A184: 33.792 | C184: 32465 | D184: 86313.14 | E184: =IF(D184<>0,('Modelo Atmosférico'!$B$9/'Modelo Atmosférico'!$B$10)*((POWER(D184/'Modelo Atmosférico'!$B$14,(-'Modelo Atmosférico'!$B$11*'Modelo Atmosférico'!$B$10)/('Modelo Atmosférico'!$B$12*'Modelo Atmosférico'!$B$13)))-1),0) -> 1332.062525 | F184: 465.181201
A185: 33.984 | C185: 32462 | D185: 86321.19 | E185: =IF(D185<>0,('Modelo Atmosférico'!$B$9/'Modelo Atmosférico'!$B$10)*((POWER(D185/'Modelo Atmosférico'!$B$14,(-'Modelo Atmosférico'!$B$11*'Modelo Atmosférico'!$B$10)/('Modelo Atmosférico'!$B$12*'Modelo Atmosférico'!$B$13)))-1),0) -> 1331.299546 | F185: 464.4182215
A186: 34.176 | C186: 32447 | D186: 86361.41 | E186: =IF(D186<>0,('Modelo Atmosférico'!$B$9/'Modelo Atmosférico'!$B$10)*((POWER(D186/'Modelo Atmosférico'!$B$14,(-'Modelo Atmosférico'!$B$11*'Modelo Atmosférico'!$B$10)/('Modelo Atmosférico'!$B$12*'Modelo Atmosférico'!$B$13)))-1),0) -> 1327.488355 | F186: 460.6070305
A187: 34.368 | C187: 32432 | D187: 86401.64 | E187: =IF(D187<>0,('Modelo Atmosférico'!$B$9/'Modelo Atmosférico'!$B$10)*((POWER(D187/'Modelo Atmosférico'!$B$14,(-'Modelo Atmosférico'!$B$11*'Modelo Atmosférico'!$B$10)/('Modelo Atmosférico'!$B$12*'Modelo Atmosférico'!$B$13)))-1),0) -> 1323.677653 | F187: 456.7963294
A188: 34.56 | C188: 32416 | D188: 86444.55 | E188: =IF(D188<>0,('Modelo Atmosférico'!$B$9/'Modelo Atmosférico'!$B$10)*((POWER(D188/'Modelo Atmosférico'!$B$14,(-'Modelo Atmosférico'!$B$11*'Modelo Atmosférico'!$B$10)/('Modelo Atmosférico'!$B$12*'Modelo Atmosférico'!$B$13)))-1),0) -> 1319.614678 | F188: 452.7333541
A189: 34.752 | C189: 32394 | D189: 86503.56 | E189: =IF(D189<>0,('Modelo Atmosférico'!$B$9/'Modelo Atmosférico'!$B$10)*((POWER(D189/'Modelo Atmosférico'!$B$14,(-'Modelo Atmosférico'!$B$11*'Modelo Atmosférico'!$B$10)/('Modelo Atmosférico'!$B$12*'Modelo Atmosférico'!$B$13)))-1),0) -> 1314.029925 | F189: 447.148601
A190: 34.944 | C190: 32383 | D190: 86533.06 | E190: =IF(D190<>0,('Modelo Atmosférico'!$B$9/'Modelo Atmosférico'!$B$10)*((POWER(D190/'Modelo Atmosférico'!$B$14,(-'Modelo Atmosférico'!$B$11*'Modelo Atmosférico'!$B$10)/('Modelo Atmosférico'!$B$12*'Modelo Atmosférico'!$B$13)))-1),0) -> 1311.239178 | F190: 444.3578541
A191: 35.136 | C191: 32371 | D191: 86565.24 | E191: =IF(D191<>0,('Modelo Atmosférico'!$B$9/'Modelo Atmosférico'!$B$10)*((POWER(D191/'Modelo Atmosférico'!$B$14,(-'Modelo Atmosférico'!$B$11*'Modelo Atmosférico'!$B$10)/('Modelo Atmosférico'!$B$12*'Modelo Atmosférico'!$B$13)))-1),0) -> 1308.195777 | F191: 441.3144534
A192: 35.328 | C192: 32352 | D192: 86616.2 | E192: =IF(D192<>0,('Modelo Atmosférico'!$B$9/'Modelo Atmosférico'!$B$10)*((POWER(D192/'Modelo Atmosférico'!$B$14,(-'Modelo Atmosférico'!$B$11*'Modelo Atmosférico'!$B$10)/('Modelo Atmosférico'!$B$12*'Modelo Atmosférico'!$B$13)))-1),0) -> 1303.378145 | F192: 436.496821
A193: 35.52 | C193: 32337 | D193: 86656.44 | E193: =IF(D193<>0,('Modelo Atmosférico'!$B$9/'Modelo Atmosférico'!$B$10)*((POWER(D193/'Modelo Atmosférico'!$B$14,(-'Modelo Atmosférico'!$B$11*'Modelo Atmosférico'!$B$10)/('Modelo Atmosférico'!$B$12*'Modelo Atmosférico'!$B$13)))-1),0) -> 1299.575576 | F193: 432.6942523
A194: 35.712 | C194: 32319 | D194: 86704.72 | E194: =IF(D194<>0,('Modelo Atmosférico'!$B$9/'Modelo Atmosférico'!$B$10)*((POWER(D194/'Modelo Atmosférico'!$B$14,(-'Modelo Atmosférico'!$B$11*'Modelo Atmosférico'!$B$10)/('Modelo Atmosférico'!$B$12*'Modelo Atmosférico'!$B$13)))-1),0) -> 1295.015136 | F194: 428.1338123
A195: 35.904 | C195: 32294 | D195: 86771.77 | E195: =IF(D195<>0,('Modelo Atmosférico'!$B$9/'Modelo Atmosférico'!$B$10)*((POWER(D195/'Modelo Atmosférico'!$B$14,(-'Modelo Atmosférico'!$B$11*'Modelo Atmosférico'!$B$10)/('Modelo Atmosférico'!$B$12*'Modelo Atmosférico'!$B$13)))-1),0) -> 1288.685126 | F195: 421.8038021
A196: 36.096 | C196: 32282 | D196: 86803.96 | E196: =IF(D196<>0,('Modelo Atmosférico'!$B$9/'Modelo Atmosférico'!$B$10)*((POWER(D196/'Modelo Atmosférico'!$B$14,(-'Modelo Atmosférico'!$B$11*'Modelo Atmosférico'!$B$10)/('Modelo Atmosférico'!$B$12*'Modelo Atmosférico'!$B$13)))-1),0) -> 1285.647562 | F196: 418.7662378
A197: 36.288 | C197: 32273 | D197: 86828.1 | E197: =IF(D197<>0,('Modelo Atmosférico'!$B$9/'Modelo Atmosférico'!$B$10)*((POWER(D197/'Modelo Atmosférico'!$B$14,(-'Modelo Atmosférico'!$B$11*'Modelo Atmosférico'!$B$10)/('Modelo Atmosférico'!$B$12*'Modelo Atmosférico'!$B$13)))-1),0) -> 1283.370223 | F197: 416.488899
A198: 36.48 | C198: 32252 | D198: 86884.44 | E198: =IF(D198<>0,('Modelo Atmosférico'!$B$9/'Modelo Atmosférico'!$B$10)*((POWER(D198/'Modelo Atmosférico'!$B$14,(-'Modelo Atmosférico'!$B$11*'Modelo Atmosférico'!$B$10)/('Modelo Atmosférico'!$B$12*'Modelo Atmosférico'!$B$13)))-1),0) -> 1278.057168 | F198: 411.1758444
A199: 36.672 | C199: 32232 | D199: 86938.08 | E199: =IF(D199<>0,('Modelo Atmosférico'!$B$9/'Modelo Atmosférico'!$B$10)*((POWER(D199/'Modelo Atmosférico'!$B$14,(-'Modelo Atmosférico'!$B$11*'Modelo Atmosférico'!$B$10)/('Modelo Atmosférico'!$B$12*'Modelo Atmosférico'!$B$13)))-1),0) -> 1273.001325 | F199: 406.1200008
A200: 36.864 | C200: 32227 | D200: 86951.49 | E200: =IF(D200<>0,('Modelo Atmosférico'!$B$9/'Modelo Atmosférico'!$B$10)*((POWER(D200/'Modelo Atmosférico'!$B$14,(-'Modelo Atmosférico'!$B$11*'Modelo Atmosférico'!$B$10)/('Modelo Atmosférico'!$B$12*'Modelo Atmosférico'!$B$13)))-1),0) -> 1271.737759 | F200: 404.8564346
A201: 37.056 | C201: 32205 | D201: 87010.51 | E201: =IF(D201<>0,('Modelo Atmosférico'!$B$9/'Modelo Atmosférico'!$B$10)*((POWER(D201/'Modelo Atmosférico'!$B$14,(-'Modelo Atmosférico'!$B$11*'Modelo Atmosférico'!$B$10)/('Modelo Atmosférico'!$B$12*'Modelo Atmosférico'!$B$13)))-1),0) -> 1266.178434 | F201: 399.2971104
... 47 more rows
